bitfinex-derivatives/quotes_BTCF0:USTF0_20250324
["timestamp","ask_amount","ask_price","bid_price","bid_amount"]
[1742833420283,0.037,88182.0,88181.0,0.0463]
[1742833420577,0.03784,88182.0,88181.0,0.0463]
[1742833420774,0.07564,88182.0,88181.0,0.0463]
[1742833421081,0.18820182,88182.0,88181.0,0.0463]
[1742833421375,0.18904182,88182.0,88181.0,0.0463]
[1742833424071,0.18904182,88182.0,88181.0,0.0116]
[1742833424277,0.18904182,88182.0,88181.0,0.011]
[1742833425482,0.18904182,88182.0,88168.0,0.00017018]
[1742833425483,0.54984182,88182.0,88168.0,0.00017018]
[1742833425685,0.54984182,88182.0,88169.0,0.3814]
[1742833426790,0.54984182,88182.0,88169.0,0.3854]
[1742833427986,0.54984182,88182.0,88169.0,0.0246]
[1742833428588,0.11244,88181.0,88169.0,0.0246]
[1742833428789,0.11332001,88181.0,88169.0,0.0246]
[1742833428992,0.0717,88180.0,88169.0,0.0603]
[1742833429188,0.07262,88180.0,88169.0,0.0593]
[1742833429391,0.18603018,88180.0,88169.0,0.0563]
[1742833429689,0.18603018,88180.0,88169.0,0.0583]
[1742833430880,0.18603018,88180.0,88169.0,0.0226]
[1742833431787,0.18603018,88180.0,88169.0,0.0595]
[1742833434178,0.18603018,88180.0,88169.0,0.0226]
[1742833435493,0.11244,88179.0,88169.0,0.0226]
[1742833435684,0.11328,88179.0,88169.0,0.0226]
[1742833435883,0.0747,88178.0,88169.0,0.0226]
[1742833436084,0.18798,88178.0,88169.0,0.0226]
[1742833436283,0.30139147,88178.0,88170.0,0.0371]
[1742833436592,0.30139147,88178.0,88170.0,0.0571]
[1742833437690,0.30139147,88178.0,88170.0,0.0591]
[1742833438791,0.30139147,88178.0,88170.0,0.022]
[1742833444188,0.30139147,88178.0,88170.0,0.032]
[1742833449599,0.18895147,88178.0,88172.0,0.3608]
[1742833449799,0.07554,88178.0,88176.0,0.3608]
[1742833449988,0.0368,88178.0,88177.0,0.0733]
[1742833450190,0.0369,88183.0,88177.0,0.1139]
[1742833450492,0.0731,88183.0,88182.0,0.3608]
[1742833450697,0.00017018,88184.0,88182.0,0.4014]
[1742833450894,0.00017018,88184.0,88183.0,0.0733]
[1742833451101,0.00017018,88184.0,88183.0,0.1139]
[1742833451900,0.0369,88196.0,88183.0,0.12534028]
[1742833452103,0.0369,88196.0,88194.0,0.3608]
[1742833452297,0.03778001,88196.0,88194.0,0.39144]
[1742833452492,0.11339989,88195.0,88194.0,0.38144]
[1742833452702,0.11423989,88195.0,88194.0,0.02064]
[1742833452893,0.26393989,88195.0,88194.0,0.02]
[1742833453795,0.30293989,88195.0,88194.0,0.02]
[1742833453995,0.30593989,88195.0,88194.0,0.02]
[1742833454205,0.66673989,88195.0,88186.0,0.00017008]
[1742833454403,0.3608,88187.0,88186.0,0.00017008]
[1742833454699,0.36164,88187.0,88186.0,0.00017008]
[1742833455091,0.47503089,88187.0,88186.0,0.00017008]
[1742833455896,0.47503089,88187.0,88186.0,0.01017008]
[1742833456101,0.47603089,88187.0,88186.0,0.01017008]
[1742833456690,0.47503089,88187.0,88186.0,0.01017008]
[1742833456899,0.47703089,88187.0,88186.0,0.01017008]
[1742833457701,0.58943089,88187.0,88186.0,0.01085008]
[1742833458405,0.11623089,88187.0,88186.0,0.02085008]
[1742833458701,0.00184,88187.0,88186.0,0.02085008]
[1742833458895,0.002,88187.0,88186.0,0.02085008]
[1742833460103,0.001,88187.0,88186.0,0.02085008]
[1742833460307,0.002,88187.0,88186.0,0.02085008]
[1742833462297,0.0763,88195.0,88186.0,0.02085008]
[1742833462501,0.002,88187.0,88186.0,0.02085008]
[1742833463115,0.0004,88200.0,88186.0,0.02085008]
[1742833463305,0.0368,88199.0,88194.0,0.3608]
[1742833463508,0.00017008,88203.0,88194.0,0.9222]
[1742833463706,0.00017008,88203.0,88202.0,0.3608]
[1742833463920,0.00017008,88203.0,88202.0,0.4014]
[1742833465421,0.0762,88216.0,88202.0,0.5251195]
[1742833465628,0.07704,88216.0,88211.0,0.3608]
[1742833465826,0.11337547,88215.0,88211.0,0.3908]
[1742833466019,0.11337547,88215.0,88211.0,0.3914]
[1742833466329,0.0758,88214.0,88211.0,0.3914]
[1742833466631,0.07664,88214.0,88211.0,0.3914]
[1742833466926,0.07664,88214.0,88212.0,0.1133609]
[1742833467126,0.11336261,88213.0,88212.0,0.1542009]
[1742833467324,0.00088001,88213.0,88212.0,0.1542009]
[1742833467524,0.0793,88213.0,88212.0,0.1542009]
[1742833469527,0.0004,88216.0,88215.0,0.1133571]
[1742833469723,0.0799,88226.0,88220.0,0.1133507]
[1742833469923,0.0009911,88221.0,88220.0,0.1439507]
[1742833470323,0.11435371,88221.0,88220.0,0.1439507]
[1742833471525,0.19225371,88221.0,88220.0,0.1439507]
[1742833472721,0.19425371,88221.0,88220.0,0.1439507]
[1742833475830,0.19425371,88221.0,88220.0,0.1339507]
[1742833477428,0.19425371,88221.0,88220.0,0.1439507]
[1742833480335,0.19425371,88221.0,88220.0,0.1831507]
[1742833481436,0.0808911,88221.0,88220.0,0.1831507]
[1742833481733,0.08001109,88221.0,88220.0,0.1831507]
[1742833481937,0.08001109,88221.0,88220.0,0.2203507]
[1742833486040,0.08001109,88221.0,88220.0,0.5811507]
[1742833489244,0.08001109,88221.0,88220.0,0.5439507]
[1742833490835,0.08001109,88221.0,88220.0,0.5047507]
[1742833493535,0.08001109,88221.0,88220.0,0.5447507]
[1742833494135,0.08001109,88221.0,88220.0,0.5827507]
[1742833496038,0.11268,88248.0,88229.0,0.1133391]
[1742833496237,0.00186011,88230.0,88229.0,0.7547391]
[1742833496439,0.00102011,88230.0,88229.0,0.8338391]
[1742833496742,0.11437244,88230.0,88229.0,0.3939391]
[1742833496943,0.11525245,88230.0,88229.0,0.3939391]
[1742833497647,0.11525245,88230.0,88229.0,0.4329391]
[1742833498447,0.11925245,88230.0,88229.0,0.4329391]
[1742833499049,0.11925245,88230.0,88229.0,0.3939391]
[1742833500949,0.11925245,88230.0,88229.0,0.4319391]
[1742833501650,0.15685245,88230.0,88229.0,0.4319391]
[1742833503649,0.15685245,88230.0,88229.0,0.3939391]
[1742833504245,0.15685245,88230.0,88229.0,0.2806]
[1742833504554,0.15685245,88230.0,88220.0,0.1133504]
[1742833504743,0.3608,88225.0,88220.0,0.067315]
[1742833504939,0.0781,88224.0,88221.0,0.1133489]
[1742833505141,0.0781,88224.0,88222.0,0.1133472]
[1742833505340,0.0781,88224.0,88222.0,0.1233472]
[1742833505553,0.11334077,88223.0,88222.0,0.1239472]
[1742833505743,0.11334077,88223.0,88222.0,0.1233472]
[1742833505944,0.15164077,88223.0,88222.0,0.1233472]
[1742833506251,0.26392077,88223.0,88222.0,0.01]
[1742833506455,0.26392077,88223.0,88197.0,0.05669]
[1742833506456,0.1133522,88219.0,88208.0,0.113366]
[1742833506651,0.3608,88214.0,88209.0,0.24318498]
[1742833506851,0.15058,88213.0,88209.0,0.35654898]
[1742833507051,0.15058,88213.0,88209.0,0.46991308]
[1742833507253,0.26394069,88213.0,88210.0,0.1133632]
[1742833507557,0.26394069,88213.0,88211.0,0.1133616]
[1742833507855,0.26394069,88213.0,88212.0,0.1133609]
[1742833508159,0.15166069,88213.0,88212.0,0.1233609]
[1742833508359,0.15166069,88213.0,88212.0,0.2107609]
[1742833509756,0.0392,88222.0,88221.0,0.1133494]
[1742833510059,0.0392,88222.0,88221.0,0.1333494]
[1742833510448,0.15256261,88222.0,88221.0,0.1714494]
[1742833510650,0.11436261,88222.0,88221.0,0.1820494]
[1742833511149,0.11436261,88222.0,88221.0,0.2211494]
[1742833511458,0.11636261,88222.0,88221.0,0.2211494]
[1742833521249,0.0024,88222.0,88221.0,0.2211494]
[1742833521454,0.002,88222.0,88221.0,0.2211494]
[1742833531871,0.002,88222.0,88221.0,0.1830494]
[1742833532258,0.002,88222.0,88221.0,0.2234494]
[1742833532959,0.01337951,88222.0,88221.0,0.2234494]
[1742833533268,0.01337951,88222.0,88221.0,0.1439494]
[1742833533463,0.12765056,88222.0,88221.0,0.1439494]
[1742833533765,0.12765056,88222.0,88215.0,0.056678]
[1742833533970,0.3608,88217.0,88216.0,0.1133547]
[1742833534168,0.36168001,88217.0,88216.0,0.1133547]
[1742833534360,0.36168001,88217.0,88216.0,0.1139947]
[1742833534671,0.47503106,88217.0,88216.0,0.1239947]
[1742833535168,0.47503106,88217.0,88195.0,0.15334]
[1742833535366,0.0387,88216.0,88210.0,0.1133631]
[1742833535669,0.03978,88216.0,88210.0,0.0306]
[1742833535860,0.03978,88216.0,88215.0,0.1133571]
[1742833536063,0.03978,88216.0,88215.0,0.1140371]
[1742833536371,0.15314197,88216.0,88215.0,0.00068]
[1742833537071,0.19314197,88216.0,88215.0,0.00068]
[1742833537755,0.19314197,88216.0,88215.0,0.1140371]
[1742833538470,0.23254197,88216.0,88215.0,0.1140371]
[1742833540464,0.59334197,88216.0,88215.0,0.1140371]
[1742833540975,0.23254197,88216.0,88215.0,0.1240371]
[1742833541269,0.19414197,88216.0,88215.0,0.2048371]
[1742833541877,0.19414197,88216.0,88215.0,0.2148371]
[1742833543065,0.19414197,88216.0,88215.0,0.02068]
[1742833543275,0.19414197,88216.0,88215.0,0.1333571]
[1742833543480,0.19414197,88216.0,88215.0,0.1339571]
[1742833543772,0.19414197,88216.0,88215.0,0.1239571]
[1742833543973,0.19414197,88216.0,88215.0,0.2028571]
[1742833544773,0.19414197,88216.0,88199.0,0.06832424]
[1742833544774,0.0566818,88210.0,88191.0,0.36125356]
[1742833544984,0.0566818,88210.0,88191.0,0.11384026]
[1742833544985,0.3608,88205.0,88191.0,0.11384026]
[1742833545276,0.3608,88192.0,88191.0,0.31444146]
[1742833545482,0.36200001,88192.0,88191.0,0.21444146]
[1742833546075,0.47538962,88192.0,88191.0,0.21444146]
[1742833547585,0.48703021,88192.0,88191.0,0.21444146]
[1742833547775,0.48703021,88192.0,88191.0,0.21644146]
[1742833548376,0.56573021,88192.0,88191.0,0.21644146]
[1742833548575,0.56573021,88192.0,88191.0,0.21744146]
[1742833549580,0.56573021,88192.0,88191.0,0.21544146]
[1742833549783,0.56573021,88192.0,88191.0,0.21444146]
[1742833549971,0.20493021,88192.0,88191.0,0.21444146]
[1742833550171,0.3608,88218.0,88191.0,0.26105356]
[1742833550480,0.00084,88223.0,88222.0,0.1133481]
[1742833550690,0.11224,88234.0,88229.0,0.1133391]
[1742833550987,0.00186011,88230.0,88229.0,0.1140191]
[1742833551187,0.19260987,88230.0,88229.0,0.1941191]
[1742833552384,0.20804361,88230.0,88229.0,0.1941191]
[1742833553684,0.20904361,88230.0,88229.0,0.1941191]
[1742833554393,0.20904361,88230.0,88229.0,0.2041191]
[1742833557182,0.20904361,88230.0,88229.0,0.01068]
[1742833557481,0.20904361,88230.0,88208.0,0.0566825]
[1742833557482,0.1133854,88193.0,88177.0,0.4132]
[1742833557673,0.83484001,88193.0,88192.0,0.13041998]
[1742833557877,0.0566955,88189.0,88178.0,0.06]
[1742833558081,0.4742034,88179.0,88178.0,0.04064]
[1742833558286,0.1134175,88168.0,88160.0,0.0812]
[1742833558474,0.1134175,88168.0,88125.0,0.56906435]
[1742833558475,0.5864175,88168.0,88167.0,0.40098925]
[1742833558672,0.70120583,88168.0,88167.0,0.40098925]
[1742833558871,0.72677784,88168.0,88159.0,0.0006238]
[1742833559076,0.72677784,88168.0,88130.0,0.3608]
[1742833559077,0.1134424,88149.0,88141.0,0.1134518]
[1742833559277,0.0016,88149.0,88148.0,0.1134432]
[1742833559476,0.3624,88149.0,88148.0,0.1134432]
[1742833559681,0.1134484,88144.0,88143.0,0.00045381]
[1742833559881,0.1353625,88144.0,88143.0,0.00045381]
[1742833560083,0.2475625,88144.0,88143.0,0.00045381]
[1742833560287,0.2475625,88144.0,88129.0,0.1134675]
[1742833560288,0.39756546,88144.0,88135.0,0.00017018]
[1742833560489,0.05673,88135.0,88127.0,0.00028371]
[1742833560782,0.05673,88135.0,88111.0,0.00045397]
[1742833560783,0.1134754,88123.0,88122.0,0.02385709]
[1742833560990,0.1134754,88123.0,88111.0,0.00045397]
[1742833560991,0.1134793,88120.0,88111.0,0.00045397]
[1742833561189,0.1134896,88112.0,88111.0,0.00045397]
[1742833561375,0.1134896,88112.0,88089.0,0.4671208]
[1742833561376,0.1135038,88101.0,88100.0,0.10454603]
[1742833561578,0.3624,88101.0,88100.0,0.10454603]
[1742833561778,0.5881038,88101.0,88100.0,0.10454603]
[1742833562180,0.5881038,88101.0,88084.0,0.51626928]
[1742833562181,1.80908,88101.0,88084.0,0.51626928]
[1742833562384,0.7216,88085.0,88039.0,0.86751005]
[1742833562585,0.3608,88046.0,88040.0,0.039]
[1742833562781,0.3608,88046.0,88039.0,1.12751005]
[1742833562782,0.0567896,88043.0,88039.0,0.86751005]
[1742833562988,0.1135824,88040.0,88039.0,0.86751005]
[1742833563290,0.1135824,88040.0,88039.0,0.52299453]
[1742833563586,0.37716326,88040.0,88039.0,0.48331701]
[1742833563883,0.3855899,88040.0,88039.0,0.44363949]
[1742833564075,0.38513568,88040.0,88039.0,0.44363949]
[1742833564275,0.38513568,88040.0,88039.0,0.40396197]
[1742833564479,0.38468138,88040.0,88039.0,0.40396197]
[1742833564793,1.2108075,88040.0,88039.0,0.40396197]
[1742833564975,1.05242086,88040.0,88039.0,0.40396197]
[1742833565176,1.05542086,88040.0,88039.0,0.40396197]
[1742833565581,1.05842086,88040.0,88039.0,0.51754567]
[1742833565783,1.24116518,88040.0,88036.0,0.0567934]
[1742833565983,1.23816518,88040.0,88039.0,0.1135837]
[1742833566187,0.41400518,88040.0,88039.0,0.1135837]
[1742833566579,0.0567735,88068.0,88039.0,0.1135837]
[1742833566580,0.1148,88059.0,88047.0,0.1135734]
[1742833566779,0.1148,88059.0,88047.0,0.4843734]
[1742833566980,0.11484,88066.0,88059.0,0.1135579]
[1742833567379,0.3608,88069.0,88059.0,0.1135579]
[1742833567588,0.41928681,88060.0,88059.0,0.1135579]
[1742833567789,0.77998681,88060.0,88044.0,0.11496]
[1742833568086,0.41918681,88060.0,88059.0,0.1135579]
[1742833568583,0.42082681,88060.0,88059.0,0.1135579]
[1742833568785,0.42082681,88060.0,88059.0,0.1155579]
[1742833568988,0.11521505,88060.0,88059.0,0.1155579]
[1742833569284,0.11521505,88060.0,88059.0,0.1195579]
[1742833569590,0.11521505,88060.0,88059.0,0.1295579]
[1742833570187,0.00164,88060.0,88059.0,0.2085579]
[1742833570391,0.11519958,88060.0,88059.0,0.2085579]
[1742833570592,0.11519958,88060.0,88059.0,0.2065579]
[1742833570893,0.11519958,88060.0,88059.0,0.2055579]
[1742833571094,0.00164,88060.0,88059.0,0.2055579]
[1742833571290,0.00164,88060.0,88059.0,0.2035579]
[1742833571488,0.00164,88060.0,88059.0,0.2055579]
[1742833571489,0.4759966,88060.0,88059.0,0.2055579]
[1742833571686,0.58955618,88060.0,88059.0,0.002]
[1742833571880,0.73955618,88060.0,88059.0,0.00382962]
[1742833572082,0.73955618,88060.0,88045.0,0.00017038]
[1742833572083,0.1135747,88046.0,88045.0,0.00017038]
[1742833572287,1.45316,88046.0,88017.0,0.0382]
[1742833572607,0.3608,88035.0,88034.0,0.1135902]
[1742833572783,0.00164,88035.0,88034.0,0.1135902]
[1742833572985,0.00164,88035.0,88034.0,0.1930902]
[1742833573289,0.3608,88053.0,88034.0,0.0895]
[1742833573486,0.3608,88053.0,88044.0,0.1135773]
[1742833573487,0.0016,88045.0,88044.0,0.1135773]
[1742833573686,0.47439183,88053.0,88052.0,0.1135669]
[1742833573882,0.47616221,88053.0,88052.0,0.1135669]
[1742833574986,0.00177038,88053.0,88052.0,0.1135669]
[1742833575187,0.09934433,88061.0,88060.0,0.1131566]
[1742833575392,0.3608,88065.0,88064.0,0.1135515]
[1742833575595,0.3624,88065.0,88064.0,0.1135515]
[1742833575893,0.4759686,88065.0,88052.0,0.004]
[1742833576192,0.4759686,88065.0,88064.0,0.1135515]
[1742833576583,0.4759686,88065.0,88063.0,0.0397]
[1742833576791,0.4759686,88065.0,88064.0,0.1135515]
[1742833576991,0.4759686,88065.0,88064.0,0.1535515]
[1742833577196,0.4759686,88065.0,88060.0,0.001]
[1742833577197,0.1135553,88061.0,88060.0,0.001]
[1742833577394,0.0016,88061.0,88060.0,0.1145566]
[1742833577696,0.0016,88061.0,88055.0,0.3608]
[1742833577995,0.11355377,88061.0,88060.0,0.1135566]
[1742833578198,0.11471377,88061.0,88060.0,0.1641566]
[1742833578497,0.00116,88061.0,88060.0,0.1641566]
[1742833578798,0.00116,88061.0,88060.0,0.1541566]
[1742833578799,0.11472151,88061.0,88060.0,0.1541566]
[1742833579693,0.11472151,88061.0,88060.0,0.0436]
[1742833579900,0.11472151,88061.0,87988.0,0.005]
[1742833579901,0.11472151,88061.0,88043.0,0.11708]
[1742833580112,0.11472151,88061.0,88060.0,0.1135566]
[1742833580598,0.00017038,88067.0,88064.0,0.1135515]
[1742833580800,0.0004,88072.0,88071.0,0.1135424]
[1742833581001,0.00104,88072.0,88071.0,0.1141424]
[1742833581385,0.09919128,88073.0,88072.0,0.1135411]
[1742833581594,0.00068,88073.0,88072.0,0.4750211]
[1742833581794,0.13225504,88075.0,88074.0,0.1135386]
[1742833581992,0.13293504,88075.0,88074.0,0.1142186]
[1742833582190,0.06993504,88075.0,88074.0,0.1142186]
[1742833582402,0.06993504,88075.0,88071.0,0.1135424]
[1742833582403,0.06925504,88075.0,88071.0,0.08517446]
[1742833582593,0.06925504,88075.0,88074.0,0.1135386]
[1742833582794,0.06925504,88075.0,88074.0,0.1142186]
[1742833583400,0.00017038,88081.0,88080.0,0.1135308]
[1742833583699,0.00093038,88081.0,88080.0,0.1141708]
[1742833584794,0.00093038,88081.0,88077.0,0.0567673]
[1742833584995,0.00093038,88081.0,88080.0,0.1135308]
[1742833585193,0.00093038,88081.0,88080.0,0.1142108]
[1742833585596,0.00093038,88081.0,88080.0,0.1540108]
[1742833585797,0.11446288,88081.0,88080.0,0.1540108]
[1742833585992,0.11446288,88081.0,88080.0,0.1550108]
[1742833586405,0.22799238,88081.0,88080.0,0.00168]
[1742833586698,0.11446288,88081.0,88080.0,0.001]
[1742833586904,0.11446288,88081.0,88080.0,0.1145308]
[1742833587096,0.11446288,88081.0,88080.0,0.1151308]
[1742833587797,0.11446288,88081.0,88080.0,0.1565308]
[1742833588197,0.11446288,88081.0,88080.0,0.1151308]
[1742833588403,0.22799238,88081.0,88080.0,0.1145308]
[1742833588604,0.22799238,88081.0,88080.0,0.001]
[1742833588816,0.11446288,88081.0,88080.0,0.1145308]
[1742833589803,0.22799238,88081.0,88080.0,0.001]
[1742833590001,0.11546288,88081.0,88080.0,0.1135308]
[1742833590208,0.59022586,88081.0,88080.0,0.1141308]
[1742833590503,0.59022586,88081.0,88080.0,0.1135308]
[1742833591103,0.59022586,88081.0,88073.0,0.0567699]
[1742833591104,0.0567654,88080.0,88073.0,0.0567699]
[1742833591307,0.1135339,88078.0,88077.0,0.1135328]
[1742833591603,0.3608,88079.0,88078.0,0.1135334]
[1742833591906,0.40244,88079.0,88075.0,0.04593791]
[1742833592102,0.0387,88078.0,88077.0,0.1135328]
[1742833592302,0.03978,88078.0,88073.0,0.1135387]
[1742833592507,0.03978,88078.0,88066.0,0.0567741]
[1742833592508,0.1135378,88075.0,88074.0,0.1135371]
[1742833592706,0.0389,88077.0,88076.0,0.113536]
[1742833592707,0.15243508,88077.0,88076.0,0.113536]
[1742833592902,0.26700979,88077.0,88076.0,0.113536]
[1742833593100,0.15347471,88077.0,88076.0,0.113536]
[1742833593301,0.15347471,88077.0,88063.0,0.0415]
[1742833593302,0.1135408,88073.0,88072.0,0.113539]
[1742833593500,0.11458081,88073.0,88072.0,0.113539]
[1742833593694,0.11458081,88073.0,88072.0,0.114139]
[1742833593895,0.00104001,88073.0,88072.0,0.114139]
[1742833594097,0.26701757,88073.0,88072.0,0.0006]
[1742833594304,0.1135502,88065.0,88058.0,0.1135591]
[1742833594494,0.1135502,88065.0,88036.0,0.06800669]
[1742833594495,0.5925902,88065.0,88051.0,0.0394]
[1742833594694,0.5925902,88065.0,88036.0,0.01121349]
[1742833594695,0.47904,88065.0,88064.0,0.1135515]
[1742833594908,0.59258281,88065.0,88035.0,0.3608]
[1742833595111,0.3608,88049.0,88042.0,0.0567898]
[1742833595405,0.3608,88049.0,88042.0,0.0006]
[1742833595406,0.1135785,88043.0,88042.0,0.0006]
[1742833595605,0.1149385,88043.0,88042.0,0.1135798]
[1742833595793,0.1149385,88043.0,88042.0,0.1141798]
[1742833595995,0.2321785,88043.0,88042.0,0.0006]
[1742833596197,0.0567907,88041.0,88035.0,0.0567944]
[1742833596397,0.1135831,88040.0,88039.0,0.1135824]
[1742833596610,0.5177231,88040.0,88039.0,0.1142624]
[1742833597008,0.5177231,88040.0,88034.0,0.00017038]
[1742833597009,0.1135889,88035.0,88034.0,0.00017038]
[1742833597305,0.1135889,88035.0,88025.0,0.0568007]
[1742833597306,0.1135927,88032.0,88025.0,0.0568007]
[1742833597500,0.0567974,88031.0,88022.0,0.1136032]
[1742833597702,0.3608,88023.0,88022.0,0.1136056]
[1742833597909,0.36236001,88023.0,88022.0,0.1136056]
[1742833598302,0.47596732,88023.0,88022.0,0.1136056]
[1742833598605,0.58957162,88023.0,88022.0,0.0506056]
[1742833598803,0.47596732,88023.0,88022.0,0.0506056]
[1742833599011,0.58957162,88023.0,88022.0,0.0506056]
[1742833599310,0.1136134,88016.0,88014.0,0.00017038]
[1742833599605,0.11517341,88016.0,88014.0,0.00017038]
[1742833600013,0.22878072,88016.0,88014.0,0.00017038]
[1742833600311,0.11516732,88016.0,88014.0,0.00017038]
[1742833600613,0.11516732,88016.0,88015.0,0.11406917]
[1742833601112,0.11616732,88016.0,88015.0,0.11406917]
[1742833601303,0.11616732,88016.0,88015.0,0.18536917]
[1742833602912,0.3608,88028.0,88027.0,0.1135992]
[1742833603307,0.36192001,88028.0,88027.0,0.1142392]
[1742833603813,0.47441635,88028.0,88027.0,0.1135992]
[1742833604209,0.47441635,88028.0,88019.0,0.1136089]
[1742833604510,0.1136082,88020.0,88019.0,0.1236095]
[1742833604715,0.0568034,88022.0,88021.0,0.1136069]
[1742833605107,0.0568034,88022.0,88015.0,0.00045447]
[1742833605108,0.0406,88027.0,88026.0,0.1136005]
[1742833605302,0.1136098,88019.0,88016.0,0.0568067]
[1742833605502,0.0393,88018.0,88017.0,0.1136121]
[1742833605704,0.0393,88018.0,88016.0,0.2272268]
[1742833605917,0.2665194,88018.0,88017.0,0.1136121]
[1742833606108,0.1529108,88018.0,88017.0,0.1136121]
[1742833606300,0.1136134,88016.0,88015.0,0.05726157]
[1742833607005,0.22722781,88016.0,88015.0,0.00045447]
[1742833607711,0.34510781,88016.0,88015.0,0.00045447]
[1742833607905,0.1136327,88001.0,88000.0,0.09171063]
[1742833608105,0.8352327,88001.0,88000.0,0.09657722]
[1742833608312,0.8352327,88001.0,88000.0,0.07657722]
[1742833608514,0.1136547,87984.0,87974.0,0.11792]
[1742833608711,0.4756147,87984.0,87980.0,0.1136591]
[1742833608901,0.4756147,87984.0,87983.0,0.00105463]
[1742833609303,0.47557635,87984.0,87983.0,0.11471063]
[1742833609509,0.58923105,87984.0,87983.0,0.11471063]
[1742833609802,0.58923105,87984.0,87983.0,0.00045463]
[1742833610003,0.58923105,87984.0,87983.0,0.00105463]
[1742833610204,0.113665,87976.0,87975.0,0.00017049]
[1742833610511,0.113665,87976.0,87975.0,0.25383679]
[1742833610512,0.36188001,87976.0,87975.0,0.25383679]
[1742833610711,0.36188001,87976.0,87975.0,0.25443679]
[1742833610911,0.47553768,87976.0,87975.0,0.25443679]
[1742833611510,0.47553768,87976.0,87975.0,0.26043679]
[1742833611707,0.51533768,87976.0,87975.0,0.26043679]
[1742833612220,0.51533768,87976.0,87975.0,0.25743679]
[1742833612605,0.47553768,87976.0,87975.0,0.25743679]
[1742833613412,0.58920268,87976.0,87975.0,0.25743679]
[1742833613807,0.70704268,87976.0,87975.0,0.14377049]
[1742833614118,0.70704268,87976.0,87975.0,0.00317049]
[1742833614609,0.70704268,87976.0,87975.0,0.11683679]
[1742833615219,0.47553768,87976.0,87975.0,0.11743679]
[1742833615409,0.58920268,87976.0,87975.0,0.19803679]
[1742833615605,0.58920268,87976.0,87975.0,0.09437049]
[1742833615815,0.95000268,87976.0,87975.0,0.15743679]
[1742833616117,0.22832577,87976.0,87975.0,0.11683679]
[1742833616418,0.47536077,87976.0,87975.0,0.11743679]
[1742833616920,0.11456077,87976.0,87975.0,0.11743679]
[1742833617508,0.11456077,87976.0,87975.0,0.15743679]
[1742833617713,0.11446077,87976.0,87975.0,0.15743679]
[1742833617918,0.11446077,87976.0,87975.0,0.11743679]
[1742833618121,0.11446077,87976.0,87975.0,0.00377049]
[1742833618425,0.21510673,87976.0,87975.0,0.11683679]
[1742833618723,0.21510673,87976.0,87973.0,0.1136683]
[1742833619023,0.21510673,87976.0,87975.0,0.1939663]
[1742833619215,0.21500673,87976.0,87975.0,0.1945663]
[1742833619417,0.21500673,87976.0,87975.0,0.5553663]
[1742833619613,0.21500673,87976.0,87975.0,0.5653663]
[1742833620220,0.28660806,87990.0,87988.0,0.1136493]
[1742833620518,0.1965482,87989.0,87988.0,0.0006]
[1742833620718,0.25162807,87989.0,87982.0,0.1136572]
[1742833621021,0.1136499,87988.0,87982.0,0.1142565]
[1742833621321,0.113656,87983.0,87982.0,0.0006]
[1742833621622,0.1136592,87981.0,87976.0,0.1136641]
[1742833621816,0.1136637,87977.0,87976.0,0.0006]
[1742833622011,0.113665,87976.0,87975.0,0.003]
[1742833622313,0.1136754,87968.0,87967.0,0.00056854]
[1742833622517,0.36176001,87968.0,87967.0,0.00056854]
[1742833622721,0.36176001,87968.0,87967.0,0.00124854]
[1742833622927,0.47542672,87968.0,87967.0,0.00124854]
[1742833623226,0.47542672,87968.0,87967.0,0.11492524]
[1742833623227,0.55482672,87968.0,87967.0,0.11492524]
[1742833623425,0.55482672,87968.0,87967.0,0.00124854]
[1742833623625,0.55482672,87968.0,87967.0,0.00056854]
[1742833624227,0.55482672,87968.0,87967.0,0.11424524]
[1742833624423,0.55482672,87968.0,87967.0,0.11484524]
[1742833624618,0.55572672,87968.0,87967.0,0.11484524]
[1742833624927,0.00196001,87968.0,87967.0,0.47564524]
[1742833625133,0.11563835,87968.0,87967.0,0.03956854]
[1742833625321,0.11563835,87968.0,87967.0,0.11984524]
[1742833625719,0.79013375,87968.0,87967.0,0.00616854]
[1742833626028,0.79013375,87968.0,87936.0,0.4132]
[1742833626029,0.68780442,87968.0,87944.0,0.0384]
[1742833626325,0.11888,87967.0,87951.0,0.2704548]
[1742833626524,0.11888,87967.0,87952.0,0.0803]
[1742833626726,0.1136915,87956.0,87952.0,0.2103]
[1742833626921,0.0396,87955.0,87952.0,0.2203]
[1742833627123,0.3608,87960.0,87952.0,0.3339951]
[1742833627426,0.1136948,87953.0,87952.0,0.13]
[1742833627630,0.1136961,87952.0,87951.0,0.0004548]
[1742833627827,0.1551961,87952.0,87951.0,0.0004548]
[1742833628226,0.26889189,87952.0,87951.0,0.0004548]
[1742833628534,0.38805189,87952.0,87951.0,0.0004548]
[1742833628826,0.38795189,87952.0,87951.0,0.0004548]
[1742833629026,0.1137155,87937.0,87936.0,0.4132]
[1742833629232,0.1137167,87936.0,87935.0,0.00045488]
[1742833629432,0.1137167,87936.0,87920.0,0.4132]
[1742833629433,0.0568631,87929.0,87921.0,0.0568677]
[1742833629622,0.0568631,87929.0,87928.0,0.1137239]
[1742833629824,0.1705987,87926.0,87925.0,0.1137298]
[1742833630431,0.47449902,87926.0,87925.0,0.113731]
[1742833630623,0.47565902,87926.0,87925.0,0.114371]
[1742833631137,0.58928872,87926.0,87925.0,0.114371]
[1742833631331,0.47555902,87926.0,87925.0,0.114371]
[1742833631525,0.36286,87926.0,87925.0,0.124371]
[1742833632438,0.36376,87926.0,87925.0,0.125371]
[1742833632651,0.36376,87926.0,87925.0,0.244531]
[1742833632933,0.3608,87937.0,87936.0,0.1137167]
[1742833633123,0.11371,87942.0,87941.0,0.1137077]
[1742833633328,0.11451,87942.0,87941.0,0.1143077]
[1742833633729,0.0008,87942.0,87941.0,0.53825862]
[1742833633929,0.0568445,87958.0,87950.0,0.1136973]
[1742833634135,0.16965406,87952.0,87951.0,0.1916973]
[1742833634336,0.16965406,87952.0,87951.0,0.1922973]
[1742833634543,0.58887607,87952.0,87951.0,0.0786]
[1742833634736,0.58887607,87952.0,87951.0,0.0388]
[1742833635337,0.58887607,87952.0,87951.0,0.0006]
[1742833635537,0.1136999,87949.0,87948.0,0.1137006]
[1742833635736,0.1137025,87947.0,87946.0,0.0568518]
[1742833636042,0.1137064,87945.0,87944.0,0.1137052]
[1742833636236,0.11430641,87945.0,87944.0,0.1243052]
[1742833636545,0.15590641,87945.0,87944.0,0.2013052]
[1742833636845,0.3608,87983.0,87944.0,1.1516]
[1742833637138,0.0416,87975.0,87972.0,0.056835]
[1742833637340,0.4744689,87973.0,87972.0,0.00084]
[1742833637545,0.4752689,87973.0,87972.0,0.00084]
[1742833637836,0.23606525,87968.0,87962.0,0.1136827]
[1742833638146,0.3608,87963.0,87962.0,0.0008]